fUST/lending_fUST_20240305
["ID","MTS","AMOUNT","RATE_DAILY","PERIOD"]
[316854211,1709634646911,-397.09,0.00024656,2]
[316854212,1709634646924,-397.09,0.00024656,2]
[316854213,1709634646933,-397.09,0.00024656,2]
[316854214,1709634646942,-500.0,0.00024657,2]
[316854215,1709634646951,-500.0,0.00024657,2]
[316854216,1709634646960,-500.0,0.00024657,2]
[316854217,1709634646969,-500.0,0.00024657,2]
[316854218,1709634646978,-500.0,0.00024657,2]
[316854219,1709634646988,-73.30347608,0.00024657,2]
[316854220,1709634647000,-426.69652392,0.00024657,2]
[316854221,1709634647008,-5.92819373,0.00024657,2]
[316854222,1709634647020,-494.07180627,0.00024657,2]
[316854223,1709634647029,-500.0,0.00024657,2]
[316854224,1709634647038,-500.0,0.00024657,2]
[316854225,1709634647047,-500.0,0.00024657,2]
[316854226,1709634647056,-500.0,0.00024657,2]
[316854227,1709634647066,-500.0,0.00024657,2]
[316854228,1709634647075,-500.0,0.00024657,2]
[316854229,1709634647085,-500.0,0.00024657,2]
[316854230,1709634647095,-500.0,0.00024657,2]
[316854231,1709634647104,-500.0,0.00024657,2]
[316854232,1709634647113,-310.35862199,0.00024657,2]
[316854233,1709634647123,-500.0,0.00024657,2]
[316854234,1709634647133,-500.0,0.00024657,2]
[316854235,1709634647142,-500.0,0.00024657,2]
[316854236,1709634647152,-500.0,0.00024657,2]
[316854237,1709634647162,-213.35786291,0.00024657,2]
[316854238,1709634647175,-500.0,0.00024657,2]
[316854239,1709634647185,-500.0,0.00024657,2]
[316854240,1709634647194,-500.0,0.00024657,2]
[316854241,1709634647203,-500.0,0.00024657,2]
[316854242,1709634647214,-500.0,0.00024657,2]
[316854243,1709634647223,-500.0,0.00024657,2]
[316854244,1709634647234,-500.0,0.00024657,2]
[316854245,1709634647244,-168.02806041,0.00024657,2]
[316854246,1709634647253,-252.122325,0.00024657,2]
[316854247,1709634647262,-500.0,0.00024657,2]
[316854249,1709634647271,-500.0,0.00024657,2]
[316854250,1709634647281,-500.0,0.00024657,2]
[316854251,1709634647291,-500.0,0.00024657,2]
[316854252,1709634647301,-500.0,0.00024657,2]
[316854253,1709634647310,-304.7,0.00024657,2]
[316854254,1709634647321,-500.0,0.00024657,2]
[316854255,1709634647330,-500.0,0.00024657,2]
[316854256,1709634647341,-248.76029493,0.00024657,2]
[316854257,1709634647351,-500.0,0.00024657,2]
[316854258,1709634647361,-500.0,0.00024657,2]
[316854259,1709634647370,-500.0,0.00024657,2]
[316854260,1709634647380,-500.0,0.00024657,2]
[316854261,1709634647391,-500.0,0.00024657,2]
[316854262,1709634647400,-6623.49,0.00024657,2]
[316854263,1709634647410,-6623.49,0.00024657,2]
[316854264,1709634647419,-6623.49,0.00024657,2]
[316854265,1709634647429,-6623.49,0.00024657,2]
[316854266,1709634647438,-6623.49,0.00024657,2]
[316854267,1709634647447,-500.0,0.00024657,2]
[316854268,1709634647457,-500.0,0.00024657,2]
[316854269,1709634647466,-500.0,0.00024657,2]
[316854270,1709634647475,-500.0,0.00024657,2]
[316854271,1709634647486,-1682.88845117,0.00024657,2]
[316854388,1709635394798,188.0,0.00027,120]
[316854503,1709635832970,-376.11462,0.00022167,2]
[316854504,1709635832984,-3930.74380839,0.00022168,2]
[316854505,1709635832998,-2595.97003118,0.00022168,2]
[316854506,1709635833011,-256.952126,0.00022293,2]
[316854507,1709635833024,-247.18675596,0.00022752,2]
[316854508,1709635833036,-441.39382951,0.00022856,2]
[316854509,1709635833047,-5145.94328053,0.00023129,5]
[316854510,1709635833058,-6300.0,0.0002373,2]
[316854511,1709635833068,-350.74,0.0002399,3]
[316854512,1709635833079,-397.14,0.00023999,2]
[316854513,1709635833092,-3757.16361328,0.00024,10]
[316854514,1709635833106,-521.57034808,0.00024,10]
[316854703,1709635837802,-500.0,0.00023999,2]
[316854704,1709635837814,-35.51548194,0.00023999,2]
[316854716,1709635837923,-464.48451806,0.00023999,2]
[316854719,1709635837934,-391.96397333,0.00023999,2]
[316854722,1709635837946,-500.0,0.00023999,2]
[316854725,1709635837957,-500.0,0.00023999,2]
[316854728,1709635837968,-500.0,0.00023999,2]
[316854731,1709635837978,-500.0,0.00023999,2]
[316854733,1709635837989,-365.15051778,0.00023999,2]
[316854735,1709635838000,-426.43989347,0.00023999,2]
[316854737,1709635838011,-500.0,0.00023999,2]
[316854739,1709635838023,-225.0,0.00023999,2]
[316854742,1709635838033,-152.37704506,0.00023999,2]
[316854744,1709635838044,-342.82623691,0.00023999,2]
[316854746,1709635838054,-500.0,0.00023999,2]
[316854748,1709635838064,-31252.4340679,0.00024,10]
[316854750,1709635838074,-1596128.17001024,0.00024,5]
[316855012,1709635840705,-2674.62929137,0.00024,5]
[316855567,1709635846163,-4345.02501347,0.00024,5]
[316855569,1709635846175,-656.65764238,0.00024,5]
[316859868,1709636850685,2500.0,0.00027,120]
[316860415,1709637038036,-184.64028687,0.00019962,2]
[316860416,1709637038046,-313.42885,0.00019963,2]
[316860417,1709637038055,-155.13962566,0.00019964,2]
[316860418,1709637038065,-36457.40768431,0.0002,2]
[316860419,1709637038074,-9292.06707662,0.00021,2]
[316860420,1709637038084,-3930.74380839,0.00021899,2]
[316860421,1709637038094,-256.952126,0.00021984,2]
[316860422,1709637038103,-283.0,0.00022,2]
[316860423,1709637038112,-283.0,0.00022192,2]
[316860424,1709637038122,-283.0,0.00023014,2]
[316860425,1709637038131,-774.57842176,0.000239,2]
[316860426,1709637038141,-3050.61684438,0.000239,2]
[316860427,1709637038151,-5452.57162802,0.00023911,2]
[316860428,1709637038160,-1293.76101677,0.00023998,2]
[316860429,1709637038169,-500.0,0.00023999,2]
[316860430,1709637038179,-426.43989347,0.00023999,2]
[316860431,1709637038188,-191.80360663,0.00023999,2]
[316860432,1709637038198,-225.0,0.00023999,2]
[316860433,1709637038207,-365.15051778,0.00023999,2]
[316860434,1709637038217,-485.2767576,0.00023999,2]
[316860435,1709637038227,-500.0,0.00023999,2]
[316860436,1709637038236,-152.37704506,0.00023999,2]
[316860437,1709637038245,-342.82623691,0.00023999,2]
[316860438,1709637038254,-262.33652678,0.00024,3]
[316860439,1709637038263,-1620105.15713523,0.00024,5]
[316860440,1709637038275,-4616.11665979,0.00024,5]
[316860441,1709637038287,-5102.63504133,0.00024,5]
[316860442,1709637038298,-1156.6432218,0.00024,5]
[316868453,1709638238304,-428.86816124,0.0002144,2]
[316868455,1709638238314,-163.29643085,0.00021441,2]
[316868456,1709638238323,-2595.97003118,0.00021442,2]
[316868458,1709638238333,-155.13962566,0.0002146,2]
[316868460,1709638238343,-184.64028687,0.00021461,2]
[316868462,1709638238353,-155.13962566,0.00021461,2]
[316868464,1709638238362,-5139.7853173,0.00021607,2]
[316868466,1709638238371,-20893.1930648,0.00021624,2]
[316868468,1709638238380,-177.43482931,0.000218,2]
[316868470,1709638238389,-336.50194337,0.000219,2]
[316868472,1709638238398,-155.92129188,0.00022854,2]
[316868474,1709638238407,-155.0,0.00023,2]
[316868476,1709638238416,-3982.23605307,0.000239,2]
[316868478,1709638238424,-684.99762618,0.000239,2]
[316868480,1709638238433,-5962.40671617,0.000239,2]
[316868482,1709638238442,-478.98,0.0002399,3]
[316868484,1709638238451,-1079.68830364,0.00023998,2]
[316868486,1709638238460,-342.82623691,0.00023999,2]
[316868488,1709638238469,-152.37704506,0.00023999,2]
[316868490,1709638238479,-500.0,0.00023999,2]
[316868492,1709638238487,-203.12410927,0.00023999,2]
[316868494,1709638238496,-365.15051778,0.00023999,2]
[316868496,1709638238505,-225.0,0.00023999,2]
[316868498,1709638238514,-500.0,0.00023999,2]
[316868500,1709638238525,-426.43989347,0.00023999,2]
[316868502,1709638238534,-450.0,0.00023999,2]
[316868504,1709638238543,-500.0,0.00023999,2]
[316868506,1709638238553,-500.0,0.00023999,2]
[316868508,1709638238562,-500.0,0.00023999,2]
[316868510,1709638238571,-500.0,0.00023999,2]
[316868512,1709638238581,-508.40711049,0.00023999,2]
[316868514,1709638238590,-500.0,0.00023999,2]
[316868516,1709638238599,-500.0,0.00023999,2]
[316868518,1709638238608,-232.53166421,0.00023999,2]
[316868520,1709638238617,-500.0,0.00023999,2]
[316868522,1709638238626,-321.30399158,0.00023999,2]
[316868524,1709638238635,-500.0,0.00023999,2]
[316868526,1709638238644,-485.0,0.00023999,2]
[316868528,1709638238653,-1001.11593488,0.00023999,2]
[316868529,1709638238662,-262.33652678,0.00024,3]
[316868531,1709638238671,-1585008.1372969,0.00024,5]
[316869154,1709638245060,-379663.16094867,0.00024,5]
[316869827,1709639357815,6511.9786444,0.00019505,2]
[316869830,1709639368620,224.33462892,0.000189,2]
[316869846,1709639432573,-205.42033407,0.0002006,2]
[316869848,1709639432584,-155.18156243,0.00020061,2]
[316869849,1709639432595,-163.29643085,0.00020062,2]
[316869850,1709639432605,-20490.31178222,0.00020067,2]
[316869851,1709639432617,-6628.2786243,0.00020068,2]
[316869852,1709639432627,-264.65691,0.00020267,2]
[316869853,1709639432636,-250.0,0.00020467,2]
[316869854,1709639432645,-4281.51645316,0.00022,2]
[316869855,1709639432654,-3023.37306884,0.0002217,2]
[316869856,1709639432663,-157.6406534,0.00022854,2]
[316869857,1709639432674,-278.71190117,0.00023899,2]
[316869858,1709639432684,-57883.95946327,0.000239,2]
[316870158,1709639440593,-2286.58195,0.000239,2]
[316870861,1709639447268,-393.0,0.000239,2]
[316870875,1709639447390,-1086.0,0.000239,2]
[316885572,1709640632640,-163.29643085,0.00021714,2]
[316885574,1709640632649,-155.18622347,0.00021715,2]
[316885576,1709640632658,-205.42033407,0.00021716,2]
[316885578,1709640632667,-604.9110618,0.00021723,2]
[316885580,1709640632676,-587.71014943,0.0002217,2]
[316885583,1709640632699,-1427.87189646,0.0002217,2]
[316885586,1709640632709,-20490.31178222,0.00022211,2]
[316885589,1709640632719,-1394.9273104,0.00022212,2]
[316885591,1709640632728,-1227.6719439,0.00022339,2]
[316885593,1709640632737,-164.232121,0.00022705,2]
[316885595,1709640632747,-30141.11341249,0.00023,2]
[316885780,1709640647874,-652.42,0.0002299,3]
[316885781,1709640647883,-5902.58,0.00022998,2]
[316889754,1709641834968,-2595.97003118,0.00020773,2]
[316889756,1709641834977,-20490.31178222,0.00020773,2]
[316889758,1709641834987,-155.18622347,0.00021098,2]
[316889760,1709641834997,-163.29643085,0.00021099,2]
[316889762,1709641835006,-166.666666,0.000211,2]
[316889764,1709641835015,-261.305087,0.00021563,2]
[316889766,1709641835025,-24900.0,0.00021696,2]
[316889768,1709641835035,-176.0,0.00022,2]
[316889770,1709641835045,-1679.65170491,0.0002217,2]
[316889772,1709641835055,-176.0,0.00022192,2]
[316889774,1709641835066,-8792.24468487,0.000229,2]
[316889776,1709641835075,-596.24067168,0.00022914,2]
[316889778,1709641835085,-478.98,0.0002299,3]
[316889780,1709641835095,-183.70834169,0.00022998,2]
[316889781,1709641835108,-501.98596701,0.00022998,2]
[316889783,1709641835118,-500.0,0.00022999,2]
[316889786,1709641835128,-500.0,0.00022999,2]
[316889788,1709641835138,-500.0,0.00022999,2]
[316889790,1709641835148,-500.0,0.00022999,2]
[316889792,1709641835158,-485.37209597,0.00022999,2]
[316889794,1709641835168,-500.0,0.00022999,2]
[316889796,1709641835178,-500.0,0.00022999,2]
[316889798,1709641835188,-152.37704506,0.00022999,2]
[316889800,1709641835197,-500.0,0.00022999,2]
[316889802,1709641835210,-232.53166421,0.00022999,2]
[316889804,1709641835219,-500.0,0.00022999,2]
[316889806,1709641835228,-500.0,0.00022999,2]
[316889808,1709641835237,-225.0,0.00022999,2]
[316889809,1709641835247,-500.0,0.00022999,2]
[316889811,1709641835259,-426.43989347,0.00022999,2]
[316889814,1709641835270,-500.0,0.00022999,2]
[316889816,1709641835280,-500.0,0.00022999,2]
[316889818,1709641835290,-342.82623691,0.00022999,2]
[316889820,1709641835300,-321.30399158,0.00022999,2]
[316889822,1709641835311,-500.0,0.00022999,2]
[316889824,1709641835320,-500.0,0.00022999,2]
[316889825,1709641835330,-500.0,0.00022999,2]
[316889827,1709641835340,-508.40711049,0.00022999,2]
[316889829,1709641835350,-500.0,0.00022999,2]
[316889831,1709641835359,-485.0,0.00022999,2]
[316889834,1709641835368,-365.15051778,0.00022999,2]
[316889835,1709641835378,-1001.11593488,0.00022999,2]
[316889836,1709641835388,-262.33652678,0.00023,3]
[316889837,1709641835397,-20315.02206677,0.00023,2]
[316889839,1709641835410,-680.57379999,0.00023,2]
[316889842,1709641835421,-500.0,0.00023,2]
[316889844,1709641835433,-15648.0,0.00023,2]
[316889846,1709641835444,-10000.0,0.00023,2]
[316890264,1709641840477,-974.09498087,0.00023,2]
[316890267,1709641840489,-7555.5865266,0.00023,2]
[316890280,1709641840605,-641.4,0.00023,2]
[316890324,1709641840989,-859.27182275,0.00023,2]
[316890574,1709641843782,-7519.99999991,0.00023,2]
[316890952,1709641847448,-330253.97626951,0.00023,2]
[316890955,1709641847461,-4000.7737,0.00023,2]
[316892320,1709643032085,-155.18000881,0.00021235,2]
[316892322,1709643032095,-155.18000881,0.00021236,2]
[316892324,1709643032104,-163.29643085,0.00021237,2]
[316892326,1709643032113,-1605.3304544,0.00021256,2]
[316892327,1709643032122,-262.991557,0.00021257,2]
[316892329,1709643032131,-151.0,0.00022,2]
[316892331,1709643032140,-875.09853826,0.00022191,2]
[316892333,1709643032150,-151.0,0.00022192,2]
[316892335,1709643032159,-3199.30665665,0.00022999,2]
[316892337,1709643032170,-17291.00512557,0.00022999,2]
[316892339,1709643032180,-4412.89160807,0.00023,2]
[316892883,1709643038002,-108088.31647462,0.00023,2]
[316892885,1709643038012,-501.98596701,0.00023,2]
[316892887,1709643038021,-66968.0,0.00023,2]
[316892889,1709643038030,-151.0,0.00023014,2]
[316892890,1709643038040,-3264.1146174,0.00023132,5]
[316892893,1709643038049,-1557.32494016,0.00023132,3]
[316892894,1709643038059,-4113.63477197,0.00023132,5]
[316892897,1709643038069,-701.35713638,0.00023132,5]
[316892899,1709643038079,-1328.85406466,0.000238,2]
[316892901,1709643038089,-5366.16604449,0.000239,2]
[316892903,1709643038099,-5452.57162802,0.00023911,2]
[316892905,1709643038109,-16340.5128132,0.0002398,3]
[316892907,1709643038118,-650.89,0.0002398,7]
[316892918,1709643038234,-500.0,0.00023997,2]
[316892920,1709643038244,-500.0,0.00023997,2]
[316892922,1709643038255,-500.0,0.00023997,2]
[316892924,1709643038265,-500.0,0.00023997,2]
[316892926,1709643038277,-500.0,0.00023997,2]
[316892928,1709643038288,-215.72316368,0.00023997,2]
[316892930,1709643038299,-628.37108535,0.00023998,2]
[316892932,1709643038310,-159.91576652,0.00023998,2]
[316892934,1709643038321,-165.46156469,0.00023998,2]
[316892936,1709643038332,-427.4305126,0.00023998,2]
[316892938,1709643038344,-5602.10357334,0.00023998,2]
[316892940,1709643038354,-1122.02909704,0.00023998,2]
[316892942,1709643038365,-238.45907278,0.00023998,2]
[316892944,1709643038377,-4747.11434379,0.00023998,2]
[316892946,1709643038387,-8478.10247039,0.00023999,2]
[316892948,1709643038402,-151.38001891,0.00024,2]
[316892950,1709643038412,-262.33652678,0.00024,3]
[316892952,1709643038423,-5373242.90600082,0.00024,5]
[316892954,1709643038436,-1248.48482179,0.00024,5]
[316892957,1709643038453,-7852.27140312,0.00024,5]
[316892959,1709643038466,-2704.61292977,0.00024,5]
[316893123,1709643040126,-872.67904065,0.00024,5]
[316893126,1709643040138,-1333.67007164,0.00024,5]
[316893128,1709643040150,-6703.80333291,0.00024,5]
[316893247,1709643043003,-1008050.2298031,0.00024,5]
[316893248,1709643043016,-39565.35800362,0.00024,5]
[316893272,1709643046149,-155.18000881,0.00023999,2]
[316893273,1709643046159,-737.95589599,0.00023999,2]
[316893274,1709643046171,-67.39832885,0.00023999,2]
[316893275,1709643046180,-1720.47808312,0.00024,5]
[316893291,1709643272575,1218.91173392,0.0001968,10]
[316893292,1709643341661,1044.77499276,0.0001968,2]
[316893293,1709643341687,5384.49313779,0.0001968,2]
[316893294,1709643359654,4286.1787537,0.0001968,2]
[316893295,1709643379658,3571.81562808,0.0001968,2]
[316893297,1709643395669,3571.81562808,0.0001968,2]
[316893299,1709643411689,1860.91594223,0.0001968,2]
[316893301,1709643429701,1860.91594223,0.0001968,2]
[316893303,1709643445666,1860.91594223,0.0001968,2]
[316893305,1709643467683,1860.91594223,0.0001968,2]
[316893307,1709643491694,1860.91594223,0.0001968,2]
[316893310,1709643511697,1860.91594223,0.0001968,2]
[316893312,1709643529623,-155.18466976,0.00021893,2]
[316893313,1709643529643,-163.29643085,0.00021894,2]
[316893314,1709643529665,-401.08160822,0.00021895,2]
[316893315,1709643529685,-260.13523604,0.000219,2]
[316893316,1709643529706,-875.09853826,0.0002217,2]
[316893317,1709643529726,-300.0,0.0002254,2]
[316893318,1709643529748,-20490.31178222,0.00022541,2]
[316893319,1709643529769,-19151.0485897,0.00022542,2]
[316893320,1709643529790,-283.437925,0.00022903,2]
[316893321,1709643529813,-505.45024753,0.00023134,5]
[316893322,1709643529836,-341.31426179,0.00023287,2]
[316893323,1709643529858,-2655.1657,0.00023665,30]
[316893324,1709643529878,-186.77693025,0.00023716,2]
[316893325,1709643529898,-153.14542607,0.0002388,2]
[316893326,1709643529918,-210.49,0.0002389,3]
[316893327,1709643529939,-171.24940656,0.00023898,2]
[316893328,1709643529960,-171.24940654,0.00023899,2]
[316893329,1709643529981,-500.0,0.00023899,2]
[316893330,1709643530001,-500.0,0.00023899,2]
[316893331,1709643530021,-369.28776619,0.00023899,2]
[316893332,1709643530044,-500.0,0.00023899,2]
[316893333,1709643530067,-500.0,0.00023899,2]
[316893334,1709643530094,-500.0,0.00023899,2]
[316893335,1709643530114,-500.0,0.00023899,2]
[316893336,1709643530135,-617.95024596,0.00023899,2]
[316893337,1709643530156,-500.0,0.00023899,2]
[316893338,1709643530176,-500.0,0.00023899,2]
[316893339,1709643530197,-500.0,0.00023899,2]
[316893340,1709643530219,-193.872,0.00023899,2]
[316893341,1709643530246,-258.46102893,0.00023899,2]
[316893342,1709643530272,-500.0,0.00023899,2]
[316893343,1709643530294,-171.24940654,0.00023899,2]
[316893344,1709643530320,-41600.74339359,0.000239,2]
[316893345,1709643533727,1860.91594223,0.0001968,2]
[316893348,1709643551774,1860.91594223,0.0001968,2]
[316893350,1709643571719,1860.91594223,0.0001968,2]
[316893352,1709643591713,1110.83466036,0.0001968,2]
[316893367,1709643879343,156.26833768,0.00017999,2]
[316893373,1709643963675,180.3458136,0.00019178,2]
[316893378,1709643976566,1946.12900156,0.00019409,2]
[316893379,1709643976596,9000.0,0.00019409,2]
[316893380,1709643976625,9000.0,0.00019409,2]
[316893381,1709643976654,4953.87099844,0.00019409,2]
[316893776,1709644235455,-745.22315814,0.0002018,2]
[316893778,1709644235465,-290.27942906,0.0002018,2]
[316893780,1709644235476,-557.91222225,0.00020181,2]
[316893782,1709644235486,-163.29643085,0.00020181,2]
[316893784,1709644235496,-155.82570647,0.00020182,2]
[316893786,1709644235506,-401.08160822,0.00020182,2]
[316893788,1709644235516,-155.18466976,0.00020182,2]
[316893790,1709644235526,-20490.31178222,0.00020182,2]
[316893792,1709644235537,-2595.97003118,0.00020183,2]
[316893794,1709644235547,-528.19565968,0.00020183,2]
[316893796,1709644235557,-2113.35902263,0.00020183,2]
[316893798,1709644235567,-538.72875726,0.00020184,2]
[316893800,1709644235577,-300.0,0.00020187,2]
[316893802,1709644235586,-1362.78396993,0.00020223,5]
[316893804,1709644235597,-641.06435279,0.0002023,2]
[316893807,1709644235607,-1555.8442663,0.00020567,2]
[316893809,1709644235617,-594.8835686,0.00020609,2]
[316893810,1709644235628,-250.0,0.00020628,2]
[316893812,1709644235639,-184.7258083,0.00020749,2]
[316893814,1709644235649,-175.1271439,0.00020825,2]
[316893816,1709644235660,-3993.8661351,0.00020879,2]
[316893819,1709644235673,-621.05321764,0.00021242,2]
[316893821,1709644235684,-194.29827008,0.000218,2]
[316893822,1709644235695,-152.0,0.00022,2]
[316893824,1709644235706,-875.09853826,0.00022303,2]
[316893826,1709644235717,-620.05266088,0.00022304,2]
[316893828,1709644235727,-164.109383,0.00022726,2]
[316893831,1709644235738,-152.0,0.00023014,2]
[316893833,1709644235749,-648.07161259,0.00023133,5]
[316893834,1709644235758,-163.20573087,0.00023133,3]
[316893836,1709644235768,-155.0,0.00023543,2]
[316893839,1709644235779,-8300.81377387,0.000239,2]
[316893840,1709644235789,-4750.0,0.000239,2]
[316893843,1709644235798,-171.24940654,0.000239,2]
[316893845,1709644235808,-15239.69597525,0.00023998,2]
[316893846,1709644235818,-428.72125377,0.00023998,2]
[316893849,1709644235828,-1604.8167343,0.00023998,2]
[316893851,1709644235838,-155.32860882,0.00023998,2]
[316893853,1709644235848,-155.23393024,0.00023998,2]
[316893854,1709644235858,-155.57114367,0.00023998,2]
[316893857,1709644235869,-155.25434471,0.00023998,2]
[316893859,1709644235879,-155.41399961,0.00023998,2]
[316893861,1709644235888,-310.04497513,0.00023998,2]
[316893863,1709644235898,-170.90556267,0.00023998,2]
[316893865,1709644235907,-155.29689169,0.00023998,2]
[316893867,1709644235916,-1359.94792194,0.00023998,2]
[316893869,1709644235928,-257.35452736,0.00023999,2]
[316893871,1709644235938,-608.49,0.00023999,2]
[316893872,1709644235950,-608.49,0.00023999,2]
[316893875,1709644235960,-608.49,0.00023999,2]
[316893877,1709644235970,-608.49,0.00023999,2]
[316893878,1709644235980,-608.49,0.00023999,2]
[316893880,1709644235991,-608.49,0.00023999,2]
[316893883,1709644236001,-608.49,0.00023999,2]
[316893885,1709644236011,-608.49,0.00023999,2]
[316893886,1709644236020,-608.49,0.00023999,2]
[316893898,1709644236126,-500.0,0.00023999,2]
[316893900,1709644236136,-500.0,0.00023999,2]
[316893902,1709644236146,-500.0,0.00023999,2]
[316893904,1709644236156,-401.00621458,0.00023999,2]
[316893906,1709644236166,-279.68810192,0.00023999,2]
[316893908,1709644236176,-188.208,0.00023999,2]
[316893910,1709644236186,-250.94011433,0.00023999,2]
[316893912,1709644236195,-668534.15433144,0.00024,5]
[316893914,1709644236207,-1361.20925983,0.00024,5]
[316893917,1709644236218,-998.6029416,0.00024,5]
[316894123,1709644238166,-33638.60717507,0.00024,5]
[316894131,1709644238233,-4694.07758556,0.00024,5]
[316894335,1709644240287,-15819.53243881,0.00024,5]
[316894631,1709644243138,-17160.32166982,0.00024,5]
[316894639,1709644243208,-1043.8652515,0.00024,5]
[316894641,1709644243220,-293.26520376,0.00024,5]
[316894643,1709644243232,-1011.75,0.00024,5]
[316894978,1709644246642,-18586.46693205,0.00024,5]
[316894980,1709644246653,-671.95,0.00024,5]
[316895300,1709644249833,155.18466976,0.00019409,2]
[316895839,1709644255180,686.29598428,0.00019409,2]
[316896695,1709644264945,194.30418684,0.00019409,2]
[316896764,1709644265785,236.05662187,0.00019409,2]
[316897172,1709644273114,686.29598428,0.00019409,2]
[316897175,1709644279096,217.70076755,0.00019409,2]
[316897177,1709644289114,686.29598428,0.00019409,2]
[316897178,1709644309396,155.18466976,0.00019409,2]
[316897179,1709644311127,686.29598428,0.00019409,2]
[316897180,1709644327353,225.93026542,0.00019409,2]
[316897181,1709644329107,116.58388324,0.00019409,2]
[316897182,1709644329137,333.68618642,0.00019409,2]
[316897183,1709644529827,228.90945052,0.00019409,2]
[316897184,1709644585194,-155.18466976,0.00021468,2]
[316897185,1709644585218,-557.91222225,0.00021469,2]
[316897186,1709644585239,-2595.97003118,0.00021469,2]
[316897187,1709644585260,-163.29643085,0.00021469,2]
[316897188,1709644585280,-290.27942906,0.0002147,2]
[316897189,1709644585307,-155.82570647,0.0002147,2]
[316897190,1709644585334,-401.08160822,0.00021471,2]
[316897191,1709644585360,-982.74589861,0.00021472,2]
[316897192,1709644585384,-166.666666,0.00021473,2]
[316897193,1709644585411,-6120.0373376,0.00021844,2]
[316897194,1709644668391,-186.77693025,0.00021744,2]
[316897195,1709644668412,-2113.35902263,0.00021843,2]
[316897196,1709644668432,-15244.78488328,0.00021843,2]
[316897197,1709644668452,-20193.07916384,0.00021843,2]
[316897201,1709644737094,-163.29643085,0.00021841,2]
[316897202,1709644737114,-155.18466976,0.00021842,2]
[316897203,1709644737135,-501.98596701,0.00021843,2]
[316897204,1709644737156,-297.23261838,0.00021843,2]
[316897205,1709644737177,-3926.7054127,0.00021844,2]
[316897206,1709644737199,-283.437925,0.00022074,2]
[316897207,1709644737222,-5761.67563049,0.00022169,2]
[316897208,1709644737251,-875.09853826,0.00022204,2]
[316897209,1709644737273,-166.666666,0.00022205,2]
[316897210,1709644737296,-160.6227699,0.00022851,2]
[316897211,1709644737319,-166.666666,0.00022936,2]
[316897212,1709644737339,-3361.79494593,0.00023,2]
[316897213,1709644737361,-159.82159336,0.00023134,3]
[316897214,1709644737383,-632.73932362,0.00023134,5]
[316897215,1709644737405,-500.0,0.00023287,2]
[316897216,1709644737425,-166.666666,0.00023668,2]
[316897217,1709644737444,-300.0,0.00023787,2]
[316897218,1709644737465,-2655.1657,0.00023788,30]
[316897219,1709644737486,-171.24940654,0.000238,2]
[316897220,1709644737506,-210.49,0.0002389,3]
[316897221,1709644737527,-500.0,0.00023899,2]
[316897222,1709644737547,-500.0,0.00023899,2]
[316897223,1709644737568,-524.4848,0.00023899,2]
[316897224,1709644737588,-500.0,0.00023899,2]
[316897225,1709644737608,-500.0,0.00023899,2]
[316897226,1709644737628,-369.28776619,0.00023899,2]
[316897227,1709644737648,-500.0,0.00023899,2]
[316897228,1709644737668,-617.95024596,0.00023899,2]
[316897229,1709644737688,-500.0,0.00023899,2]
[316897230,1709644737709,-500.0,0.00023899,2]
[316897231,1709644737729,-500.0,0.00023899,2]
[316897232,1709644737749,-532.61492604,0.00023899,2]
[316897233,1709644737769,-11797.16133201,0.000239,2]
[316897254,1709645139534,-290.27942906,0.00021668,2]
[316897255,1709645139555,-401.08160822,0.00021668,2]
[316897256,1709645139576,-8478.10247039,0.00021668,2]
[316897257,1709645139597,-2113.35902263,0.00021669,2]
[316897258,1709645139617,-557.91222225,0.0002167,2]
[316897259,1709645139638,-8649.26524745,0.0002167,2]
[316897263,1709645210376,-528.19565968,0.00021568,2]